bitfinex-derivatives/quotes_BTCF0:USTF0_20250910
["timestamp","ask_amount","ask_price","bid_price","bid_amount"]
[1757513462118,0.21359702,114140.0,114120.0,0.36115051]
[1757513462322,0.19965757,114130.0,114120.0,0.36115051]
[1757513463628,0.19965757,114130.0,114120.0,0.36215051]
[1757513464029,0.19965757,114130.0,114120.0,0.00135051]
[1757513464331,0.56045757,114130.0,114120.0,0.00135051]
[1757513464524,0.56045757,114130.0,114120.0,0.00035051]
[1757513465120,0.63085438,114130.0,114120.0,0.00035051]
[1757513465315,0.46767681,114130.0,114120.0,0.00035051]
[1757513465515,0.63085438,114130.0,114120.0,0.00035051]
[1757513465724,0.46767681,114130.0,114120.0,0.00035051]
[1757513465923,0.63085438,114130.0,114120.0,0.00335051]
[1757513466923,0.79403195,114130.0,114120.0,0.00335051]
[1757513467328,0.63085438,114130.0,114120.0,0.00335051]
[1757513467829,0.79403195,114130.0,114120.0,0.00335051]
[1757513468325,0.63085438,114130.0,114120.0,0.00335051]
[1757513468525,1.04403195,114130.0,114120.0,0.00335051]
[1757513468727,0.88085438,114130.0,114120.0,0.00335051]
[1757513471026,1.04403195,114130.0,114120.0,0.00335051]
[1757513472832,0.88085438,114130.0,114120.0,0.00335051]
[1757513473330,1.04403195,114130.0,114120.0,0.00335051]
[1757513474429,0.71767681,114130.0,114120.0,0.00335051]
[1757513474632,1.04403195,114130.0,114120.0,0.00335051]
[1757513476027,1.04403195,114130.0,114100.0,5.7e-07]
[1757513476231,1.04403195,114130.0,114080.0,0.10035063]
[1757513476232,0.0362,114090.0,114080.0,0.10035063]
[1757513476428,1.81769757,114090.0,114080.0,0.00035063]
[1757513476636,1.98087514,114090.0,114080.0,0.00035063]
[1757513477435,1.98091514,114090.0,114080.0,0.00035063]
[1757513477835,1.98960547,114090.0,114080.0,0.00035063]
[1757513478130,1.34288547,114090.0,114080.0,0.00035063]
[1757513478428,1.34288547,114090.0,114060.0,0.01779981]
[1757513478429,0.0132,114070.0,114060.0,0.01779981]
[1757513478634,1.45693757,114070.0,114060.0,0.01779981]
[1757513479623,1.52811459,114070.0,114060.0,0.01779981]
[1757513480233,1.52811459,114070.0,114060.0,0.02179981]
[1757513480234,0.63135459,114070.0,114060.0,0.02179981]
[1757513480433,0.26980561,114070.0,114060.0,0.02179981]
[1757513480834,0.10737702,114070.0,114060.0,0.27179981]
[1757513481023,0.10737702,114070.0,114060.0,0.27279981]
[1757513481935,0.63060561,114070.0,114060.0,0.27279981]
[1757513482238,0.26980561,114070.0,114060.0,0.27279981]
[1757513482736,0.63060561,114070.0,114060.0,0.27279981]
[1757513484330,0.63060561,114070.0,114060.0,0.00535069]
[1757513484938,1.52740561,114070.0,114060.0,0.00535069]
[1757513490525,1.36497702,114070.0,114060.0,0.00535069]
[1757513490736,1.52740561,114070.0,114060.0,0.00535069]
[1757513491230,1.36497702,114070.0,114060.0,0.00535069]
[1757513491630,1.52740561,114070.0,114060.0,0.00535069]
[1757513491830,1.52724561,114070.0,114060.0,0.00535069]
[1757513492237,0.63060561,114070.0,114060.0,0.00535069]
[1757513492431,0.26980561,114070.0,114060.0,0.00535069]
[1757513492630,1.16644561,114070.0,114060.0,0.00535069]
[1757513493426,1.52724561,114070.0,114060.0,0.00535069]
[1757513495834,0.0362,114060.0,114050.0,0.00035072]
[1757513496135,0.55942859,114060.0,114050.0,0.00035072]
[1757513498541,0.55942859,114060.0,114050.0,0.00135072]
[1757513499340,0.80942859,114060.0,114050.0,0.00135072]
[1757513499541,1.62025718,114060.0,114050.0,7.2e-07]
[1757513501040,0.01348,114050.0,114040.0,0.00035075]
[1757513501241,0.55987859,114050.0,114040.0,0.00035075]
[1757513502442,0.55987859,114050.0,114040.0,0.00235075]
[1757513502641,0.39745,114050.0,114040.0,0.00335075]
[1757513502842,0.55987859,114050.0,114040.0,0.00335075]
[1757513503334,1.45603859,114050.0,114040.0,0.00335075]
[1757513503737,0.55987859,114050.0,114040.0,0.00335075]
[1757513503939,1.09519859,114050.0,114040.0,0.25235075]
[1757513504239,1.09619859,114050.0,114040.0,0.25235075]
[1757513504440,0.93377,114050.0,114040.0,0.25035075]
[1757513505142,1.09619859,114050.0,114040.0,0.25035075]
[1757513505537,1.45699859,114050.0,114040.0,0.25035075]
[1757513505842,1.45699859,114050.0,114040.0,0.00035075]
[1757513505843,1.47775519,114050.0,114040.0,0.00035075]
[1757513507242,1.45699859,114050.0,114040.0,0.00035075]
[1757513507644,1.47769116,114050.0,114040.0,0.00035075]
[1757513509439,0.93353,114050.0,114040.0,0.00035075]
[1757513509640,1.09595859,114050.0,114040.0,0.00035075]
[1757513510135,0.56087859,114050.0,114040.0,0.00035075]
[1757513510338,1.45659859,114050.0,114040.0,0.00035075]
[1757513510536,0.39845,114050.0,114040.0,0.25035075]
[1757513510839,0.03765,114050.0,114040.0,0.77357934]
[1757513511033,0.03765,114050.0,114040.0,0.61115075]
[1757513512146,0.03765,114050.0,114040.0,0.25035075]
[1757513512648,0.56087859,114050.0,114040.0,0.25035075]
[1757513512843,0.03765,114050.0,114040.0,0.61115075]
[1757513514546,0.01448,114050.0,114040.0,0.61115075]
[1757513515034,0.03765,114050.0,114040.0,0.61115075]
[1757513516139,0.03765,114050.0,114040.0,0.25035075]
[1757513517138,0.20007859,114050.0,114040.0,0.00035075]
[1757513517345,0.56087859,114050.0,114040.0,0.00035075]
[1757513517948,0.39845,114050.0,114040.0,0.00035075]
[1757513518146,0.56087859,114050.0,114040.0,0.00035075]
[1757513518849,0.39845,114050.0,114040.0,0.00035075]
[1757513519141,0.56087859,114050.0,114040.0,0.00035075]
[1757513520544,1.45571859,114050.0,114040.0,0.00035075]
[1757513521248,0.03765,114050.0,114040.0,0.16277934]
[1757513521440,0.03765,114050.0,114040.0,0.52357934]
[1757513521640,0.03765,114050.0,114040.0,0.36115075]
[1757513522051,0.01448,114050.0,114040.0,0.77357934]
[1757513522245,0.01448,114050.0,114040.0,0.94140437]
[1757513522548,0.01448,114050.0,114040.0,0.87923948]
[1757513523138,0.0132,114070.0,114060.0,0.0876564]
[1757513523348,0.0132,114070.0,114060.0,0.88402859]
[1757513523548,0.0132,114070.0,114060.0,1.22168499]
[1757513523743,0.0132,114070.0,114060.0,1.29996029]
[1757513524151,0.0132,114070.0,114060.0,1.14260256]
[1757513524348,0.0132,114070.0,114060.0,1.30853426]
[1757513524552,0.0132,114080.0,114060.0,1.57763426]
[1757513524739,0.0132,114080.0,114070.0,0.58563034]
[1757513524941,0.0132,114080.0,114070.0,0.68902289]
[1757513525143,0.0132,114080.0,114070.0,1.40515291]
[1757513525343,0.0132,114080.0,114070.0,0.51071291]
[1757513525549,0.0132,114080.0,114070.0,1.5675415]
[1757513525847,0.0132,114080.0,114070.0,1.40511291]
[1757513526044,0.0132,114080.0,114070.0,1.5675415]
[1757513526251,0.0162,114080.0,114070.0,1.50614759]
[1757513526446,0.0162,114080.0,114070.0,1.343719]
[1757513526639,0.0162,114080.0,114070.0,1.50614759]
[1757513527344,0.0182,114080.0,114070.0,1.50614759]
[1757513527652,0.0182,114080.0,114070.0,1.50586759]
[1757513528848,0.0182,114080.0,114070.0,0.449319]
[1757513529152,0.04137,114080.0,114070.0,1.343279]
[1757513529350,0.04137,114080.0,114070.0,1.40567291]
[1757513529553,0.04137,114080.0,114070.0,0.51171291]
[1757513530050,0.04137,114080.0,114070.0,1.40559291]
[1757513531156,0.04137,114080.0,114070.0,1.343199]
[1757513531654,0.0182,114080.0,114070.0,1.343199]
[1757513531850,0.0182,114080.0,114070.0,1.5680215]
[1757513532048,0.0182,114080.0,114070.0,1.50562759]
[1757513532348,0.0182,114080.0,114070.0,1.5680215]
[1757513535653,0.0182,114080.0,114070.0,1.9056702]
[1757513535843,0.005,114080.0,114070.0,1.84327629]
[1757513536050,0.005,114080.0,114070.0,1.90547474]
[1757513536251,0.01871,114080.0,114070.0,1.90547474]
[1757513536547,0.01871,114080.0,114070.0,1.81782604]
[1757513537858,0.01871,114080.0,114070.0,1.90547474]
[1757513538654,0.01348,114090.0,114080.0,0.0876411]
[1757513538951,0.01348,114090.0,114080.0,0.58542704]
[1757513539154,0.01348,114090.0,114080.0,0.67306814]
[1757513539357,0.01348,114090.0,114080.0,0.42299845]
[1757513539552,0.01348,114090.0,114080.0,0.58542704]
[1757513540059,0.01348,114090.0,114080.0,0.58642704]
[1757513540359,0.02148,114090.0,114080.0,0.58642704]
[1757513540751,0.02148,114090.0,114080.0,1.47922704]
[1757513541058,0.02148,114090.0,114080.0,0.58642704]
[1757513541263,0.02148,114090.0,114080.0,1.56662824]
[1757513541655,0.02148,114090.0,114080.0,1.47898704]
[1757513542053,0.02148,114090.0,114080.0,1.74800704]
[1757513542361,0.02148,114090.0,114080.0,1.74893997]
[1757513542553,0.02148,114090.0,114080.0,0.85645997]
[1757513542755,0.02148,114090.0,114080.0,1.74889997]
[1757513543056,0.02148,114090.0,114080.0,1.68670152]
[1757513543456,0.02148,114090.0,114080.0,1.52334]
[1757513543657,0.02148,114090.0,114080.0,1.68670152]
[1757513544760,0.02148,114090.0,114080.0,1.52334]
[1757513544962,0.02148,114090.0,114080.0,1.68670152]
[1757513545663,0.02148,114090.0,114080.0,1.52334]
[1757513545861,0.02148,114090.0,114080.0,1.68670152]
[1757513546873,0.02148,114090.0,114080.0,1.77434272]
[1757513547074,0.02148,114090.0,114080.0,1.50524272]
[1757513547272,0.02148,114090.0,114080.0,1.93770424]
[1757513547473,0.02148,114090.0,114080.0,1.83654117]
[1757513547670,0.02148,114090.0,114080.0,1.56680117]
[1757513547871,0.02148,114090.0,114080.0,1.83590117]
[1757513548072,0.02148,114090.0,114080.0,1.47911997]
[1757513548473,0.02148,114090.0,114080.0,0.58735997]
[1757513548673,0.02148,114090.0,114080.0,1.47911997]
[1757513548874,0.04284,114090.0,114080.0,1.31567845]
[1757513549076,0.04284,114090.0,114080.0,1.47903997]
[1757513550473,0.02148,114090.0,114080.0,1.47903997]
[1757513550978,0.02148,114090.0,114080.0,1.31567845]
[1757513551179,0.02148,114090.0,114080.0,1.47903997]
[1757513551481,0.02148,114090.0,114080.0,1.50448262]
[1757513551778,0.02148,114090.0,114080.0,1.41684152]
[1757513552371,0.02148,114090.0,114080.0,1.49511682]
[1757513552780,0.02148,114090.0,114080.0,1.58275792]
[1757513553082,0.01348,114100.0,114090.0,0.0876335]
[1757513553273,0.01348,114110.0,114090.0,0.77515104]
[1757513553470,0.01348,114110.0,114100.0,1.58095023]
[1757513553672,0.01348,114110.0,114100.0,1.50290732]
[1757513553872,0.01348,114110.0,114100.0,1.61249274]
[1757513554282,0.01348,114110.0,114100.0,1.58091298]
[1757513554479,0.01348,114110.0,114100.0,1.50290732]
[1757513554779,0.01348,114110.0,114100.0,1.58091067]
[1757513555475,0.01448,114110.0,114100.0,1.58091067]
[1757513556370,0.01448,114110.0,114100.0,1.83091067]
[1757513556575,0.01371,114120.0,114110.0,0.0876181]
[1757513556786,0.01371,114120.0,114110.0,0.67413488]
[1757513557782,0.01371,114120.0,114110.0,0.58651678]
[1757513558081,0.01471,114120.0,114110.0,1.47711678]
[1757513559183,0.01471,114120.0,114110.0,1.47703678]
[1757513559684,0.01471,114120.0,114110.0,1.54809783]
[1757513560083,0.01471,114120.0,114110.0,1.54909783]
[1757513560484,0.01471,114120.0,114110.0,1.38573631]
[1757513560684,0.01471,114120.0,114110.0,1.54909783]
[1757513561586,0.01471,114120.0,114110.0,1.55773925]
[1757513562481,0.01471,114120.0,114110.0,0.66721925]
[1757513562678,0.01471,114120.0,114110.0,1.55729925]
[1757513562985,0.01471,114120.0,114110.0,0.66721925]
[1757513563185,0.01471,114120.0,114110.0,1.55705925]
[1757513564286,0.01471,114120.0,114110.0,1.74199585]
[1757513566086,0.01471,114120.0,114110.0,1.74159585]
[1757513566987,0.01471,114120.0,114110.0,1.39329773]
[1757513567287,0.01471,114120.0,114110.0,1.74159585]
[1757513567691,0.01471,114120.0,114110.0,0.85215585]
[1757513567986,0.01471,114120.0,114110.0,1.74159585]
[1757513569188,0.01471,114120.0,114110.0,1.39329773]
[1757513569491,0.01471,114120.0,114110.0,1.74159585]
[1757513569987,0.01471,114120.0,114110.0,1.39329773]
[1757513570187,0.01471,114120.0,114110.0,1.74159585]
[1757513570884,0.01471,114120.0,114110.0,2.01069585]
[1757513571683,0.01471,114120.0,114110.0,1.66239773]
[1757513571889,0.01471,114120.0,114110.0,2.01069585]
[1757513573092,0.01471,114120.0,114110.0,1.12125585]
[1757513573479,0.01471,114120.0,114110.0,0.76431631]
[1757513573679,0.63436812,114120.0,114110.0,1.5193]
[1757513573878,0.63436812,114120.0,114110.0,1.70220906]
[1757513573879,0.26471,114120.0,114110.0,1.70220906]
[1757513574089,0.26471,114120.0,114110.0,1.76456432]
[1757513574283,0.26471,114120.0,114110.0,1.59041526]
[1757513574593,0.01471,114120.0,114110.0,1.76456432]
[1757513575591,0.0366,114120.0,114110.0,0.87616432]
[1757513575784,0.21074906,114120.0,114110.0,1.76428432]
[1757513576490,0.21074906,114120.0,114110.0,1.59013526]
[1757513576887,0.21074906,114120.0,114110.0,1.49518432]
[1757513577088,0.21074906,114120.0,114110.0,1.32103526]
[1757513577384,0.21074906,114120.0,114110.0,1.50459806]
[1757513579083,0.2866,114120.0,114110.0,1.43238906]
[1757513579284,0.2866,114120.0,114110.0,1.49474432]
[1757513579594,0.26471,114120.0,114110.0,1.49474432]
[1757513580088,0.01471,114120.0,114110.0,1.49474432]
[1757513580693,0.18885906,114120.0,114110.0,1.32069425]
[1757513581085,0.18885906,114120.0,114110.0,1.49484331]
[1757513581279,0.63489812,114120.0,114110.0,1.32041425]
[1757513581790,0.63489812,114120.0,114110.0,0.43301425]
[1757513581990,0.63489812,114120.0,114110.0,1.32041425]
[1757513582586,0.63489812,114120.0,114110.0,0.07221425]
[1757513582785,0.63489812,114120.0,114110.0,0.00976]
[1757513582786,0.99569812,114120.0,114110.0,0.00976]
[1757513584083,0.74569812,114120.0,114110.0,0.00976]
[1757513584287,0.21074906,114120.0,114110.0,0.18390906]
[1757513584586,0.21074906,114120.0,114110.0,0.00976]
[1757513584790,0.38489812,114120.0,114110.0,0.00976]
[1757513586393,0.0366,114120.0,114110.0,0.54470906]
[1757513587590,0.0366,114120.0,114110.0,0.60716331]
[1757513591300,0.01471,114120.0,114110.0,0.60716331]
[1757513591502,0.03638,114120.0,114110.0,0.37056]
[1757513591691,0.03638,114120.0,114110.0,0.43301642]
[1757513591892,0.03638,114120.0,114110.0,0.54470906]
[1757513592091,0.03638,114120.0,114110.0,1.43082906]
[1757513592293,0.03638,114120.0,114110.0,1.25668]
[1757513592491,0.21052906,114120.0,114110.0,0.37056]
[1757513592700,0.21052906,114120.0,114110.0,1.43066906]
[1757513593499,0.21052906,114120.0,114110.0,0.37056]
[1757513593699,0.21052906,114120.0,114110.0,0.60717085]
[1757513593896,0.03638,114120.0,114110.0,1.13213085]
[1757513594103,0.21052906,114120.0,114110.0,1.13213085]
[1757513594402,0.21052906,114120.0,114110.0,0.24637085]
[1757513594600,0.21052906,114120.0,114110.0,1.13213085]
[1757513595304,0.21052906,114120.0,114110.0,0.24637085]
[1757513595495,0.38467812,114120.0,114110.0,0.07222179]
[1757513595800,0.99547812,114120.0,114110.0,0.07222179]
[1757513596397,0.64718,114120.0,114110.0,0.00976]
[1757513596703,0.99547812,114120.0,114110.0,0.00976]
[1757513598603,0.64718,114120.0,114110.0,0.00976]
[1757513598907,0.99547812,114120.0,114110.0,0.00976]
[1757513599803,0.64718,114120.0,114110.0,0.00976]
[1757513600304,0.99547812,114120.0,114110.0,0.00976]
[1757513600905,0.64718,114120.0,114110.0,0.00976]
[1757513601097,0.99547812,114120.0,114110.0,0.00976]
[1757513602405,0.57132906,114120.0,114110.0,0.18390906]
[1757513602699,0.21052906,114120.0,114110.0,0.18390906]
[1757513603108,0.21052906,114120.0,114110.0,0.00976]
[1757513603406,0.21052906,114120.0,114110.0,0.18390906]
[1757513604200,0.03638,114120.0,114110.0,0.18390906]
[1757513604404,0.03638,114120.0,114110.0,0.79912597]
[1757513605495,0.03638,114120.0,114110.0,1.68340597]
[1757513606308,0.15248418,114120.0,114110.0,1.68340597]
[1757513606610,0.03638,114120.0,114110.0,1.68340597]
[1757513606808,0.15248418,114120.0,114110.0,0.43302179]
[1757513607110,0.26858836,114120.0,114110.0,0.00976]
[1757513607310,0.62938836,114120.0,114110.0,0.00976]
[1757513608205,0.99549254,114120.0,114110.0,0.00976]
[1757513608710,0.87938836,114120.0,114110.0,0.00976]
[1757513609006,0.03501,114100.0,114090.0,0.07992161]
[1757513609207,0.62801836,114100.0,114090.0,0.07992161]
[1757513609713,0.51191418,114100.0,114090.0,0.07992161]
[1757513610104,0.62801836,114100.0,114090.0,0.07992161]
[1757513610300,0.51191418,114100.0,114090.0,0.07992161]
[1757513610502,0.03501,114100.0,114090.0,0.19602579]
[1757513610712,0.03501,114100.0,114090.0,0.55682579]
[1757513611011,0.15111418,114100.0,114090.0,0.44072161]
[1757513611213,0.15111418,114100.0,114090.0,0.44172161]
[1757513611506,0.15111418,114100.0,114090.0,0.08092161]
[1757513611909,0.15984715,114100.0,114090.0,0.08092161]
[1757513612112,0.04374297,114100.0,114090.0,0.19702579]
[1757513612311,0.03501,114100.0,114090.0,0.19702579]
[1757513613112,0.39581,114100.0,114090.0,0.08092161]
[1757513613316,0.39581,114100.0,114090.0,0.001]
[1757513613611,0.62801836,114100.0,114090.0,0.001]
[1757513614216,0.51191418,114100.0,114090.0,0.06346179]
[1757513614803,0.5206208,114100.0,114090.0,0.06346179]
[1757513615006,0.51191418,114100.0,114090.0,0.06346179]
[1757513615213,0.51191418,114100.0,114090.0,0.17956597]
[1757513615214,0.03501,114100.0,114090.0,0.17956597]
[1757513615507,0.03501,114100.0,114090.0,0.54036597]
[1757513616713,0.03501,114100.0,114090.0,0.42426179]
[1757513616905,0.03501,114100.0,114090.0,0.06346179]
[1757513617103,0.15111418,114100.0,114090.0,0.06346179]
[1757513617711,0.03501,114100.0,114090.0,0.06346179]
[1757513617914,0.15111418,114100.0,114090.0,0.06346179]
[1757513618215,0.03501,114100.0,114090.0,0.06346179]
[1757513618411,0.15111418,114100.0,114090.0,0.06346179]
[1757513621411,0.51191418,114100.0,114090.0,0.001]
[1757513621611,0.62801836,114100.0,114090.0,0.001]
[1757513622016,1.87616254,114100.0,114080.0,0.07122179]
[1757513622317,0.62864836,114090.0,114080.0,0.00876]
[1757513622618,0.51254418,114090.0,114080.0,0.00876]
[1757513623620,0.51254418,114090.0,114080.0,0.00976]
[1757513624822,1.39422418,114090.0,114080.0,0.00976]
[1757513625215,0.51254418,114090.0,114080.0,0.00976]
[1757513625420,1.39422418,114090.0,114080.0,0.00976]
[1757513625616,1.27804,114090.0,114080.0,0.00976]
[1757513625924,1.39414418,114090.0,114080.0,0.00976]
[1757513626223,0.51254418,114090.0,114080.0,0.00976]
[1757513626519,0.51254418,114090.0,114080.0,0.01176]
[1757513626923,1.39406418,114090.0,114080.0,0.01176]
[1757513627118,0.39644,114090.0,114080.0,0.01176]
[1757513627423,0.51254418,114090.0,114080.0,0.01176]
[1757513628024,1.39394418,114090.0,114080.0,0.01176]
[1757513628223,1.03306418,114090.0,114080.0,0.01176]
[1757513628625,0.03564,114090.0,114080.0,0.01176]
[1757513628827,1.03294418,114090.0,114080.0,0.01176]
[1757513629024,1.39374418,114090.0,114080.0,0.01176]
[1757513629222,1.27764,114090.0,114080.0,0.01176]
[1757513629527,1.39374418,114090.0,114080.0,0.01176]
[1757513632528,1.50984836,114090.0,114080.0,0.01176]
[1757513633127,1.75984836,114090.0,114080.0,0.01176]
[1757513634124,1.75924836,114090.0,114080.0,0.01176]
[1757513634327,1.64310418,114090.0,114080.0,0.01176]
[1757513635030,1.64302418,114090.0,114080.0,0.01176]
[1757513635222,0.76254418,114090.0,114080.0,0.01176]
[1757513635427,1.64302418,114090.0,114080.0,0.01176]
[1757513635627,0.76254418,114090.0,114080.0,0.01176]
[1757513635829,1.5268,114090.0,114080.0,0.01176]
[1757513636025,1.64286418,114090.0,114080.0,0.01176]
[1757513636426,0.51254418,114090.0,114080.0,0.01176]
[1757513636639,0.15174418,114090.0,114080.0,0.01176]
[1757513636930,1.39282418,114090.0,114080.0,0.01176]
[1757513637428,0.51254418,114090.0,114080.0,0.01176]
[1757513637733,1.39278418,114090.0,114080.0,0.01176]
[1757513638936,0.51254418,114090.0,114080.0,0.01176]
[1757513639134,1.39270418,114090.0,114080.0,0.01176]
[1757513639433,1.39246418,114090.0,114080.0,0.01176]
[1757513639839,1.39238418,114090.0,114080.0,0.01176]
[1757513640131,1.39238418,114090.0,114080.0,0.003]
[1757513640932,0.51254418,114090.0,114080.0,0.003]
[1757513641228,1.39222418,114090.0,114080.0,0.003]
[1757513643531,0.51254418,114090.0,114080.0,0.003]
[1757513643739,1.39198418,114090.0,114080.0,0.003]
[1757513644935,0.51254418,114090.0,114080.0,0.003]
[1757513645136,1.03110418,114090.0,114080.0,0.003]
[1757513645332,0.03564,114090.0,114080.0,0.48520836]
[1757513645537,0.03564,114090.0,114080.0,0.84600836]
[1757513645841,0.03564,114090.0,114080.0,0.72990418]
[1757513646438,0.15174418,114090.0,114080.0,0.36910418]
[1757513646638,0.15174418,114090.0,114080.0,0.253]
[1757513647439,0.03564,114090.0,114080.0,0.253]
[1757513648537,0.15174418,114090.0,114080.0,0.253]
[1757513648845,0.51254418,114090.0,114080.0,0.253]
[1757513650046,0.39644,114090.0,114080.0,0.253]
[1757513650243,0.51254418,114090.0,114080.0,0.253]
[1757513651647,0.39644,114090.0,114080.0,0.253]
[1757513651846,0.15174418,114090.0,114080.0,0.253]
[1757513652047,0.03564,114090.0,114080.0,0.11910418]
[1757513653246,0.03564,114090.0,114080.0,0.47990418]
[1757513653444,0.01262,114090.0,114080.0,0.93365046]
[1757513653843,0.0003777,114090.0,114080.0,1.88961381]
[1757513654047,0.0003777,114090.0,114080.0,1.81161046]
[1757513654848,0.0003777,114090.0,114080.0,1.01165381]
[1757513655049,0.0003777,114090.0,114080.0,1.88941381]
[1757513655245,0.0003777,114090.0,114080.0,0.84600836]
[1757513655450,0.0003777,114090.0,114080.0,1.72368836]
[1757513655648,0.0003777,114090.0,114080.0,0.84600836]
[1757513656255,0.0003777,114090.0,114080.0,1.72356836]
[1757513656448,0.0003777,114090.0,114080.0,1.65362447]
[1757513657150,0.0003777,114090.0,114080.0,0.77606447]
[1757513657342,0.0003777,114090.0,114080.0,1.73162782]
[1757513659750,0.0003777,114090.0,114080.0,0.85406782]
[1757513659956,0.0003777,114090.0,114080.0,1.73118782]
[1757513660850,0.0003777,114090.0,114080.0,1.73106782]
[1757513663059,0.0003777,114090.0,114080.0,1.65306447]
[1757513663753,0.0003777,114090.0,114080.0,0.77606447]
[1757513663954,0.0003777,114090.0,114080.0,1.65246447]
[1757513664150,0.0003777,114090.0,114080.0,1.65242447]
[1757513664352,0.0003777,114090.0,114080.0,0.7771585]
[1757513664555,0.0003777,114090.0,114080.0,1.6622785]
[1757513665853,0.0003777,114090.0,114080.0,1.9313785]
[1757513668358,0.01334,114100.0,114080.0,1.90364035]
[1757513668655,0.01334,114100.0,114090.0,0.76552035]
[1757513669656,0.01334,114100.0,114090.0,0.687517]
[1757513670253,0.01334,114100.0,114090.0,0.43879147]
[1757513670453,0.01334,114100.0,114090.0,1.47754997]
[1757513670652,0.01334,114100.0,114090.0,1.47854997]
[1757513671957,0.01334,114100.0,114090.0,1.47850997]
[1757513672364,0.01334,114100.0,114090.0,1.54989896]
[1757513672551,0.03556,114100.0,114090.0,1.38630046]
[1757513672746,0.28556,114100.0,114090.0,1.38618046]
[1757513672956,0.28556,114100.0,114090.0,0.43979147]
[1757513673159,0.28556,114100.0,114090.0,1.31479147]
[1757513674260,0.28556,114100.0,114090.0,1.2368]
[1757513674655,0.28556,114100.0,114090.0,1.23676]
[1757513674656,0.4489185,114100.0,114090.0,1.23676]
[1757513674859,0.4489185,114100.0,114090.0,0.3618]
[1757513676354,0.45982081,114100.0,114090.0,0.3618]
[1757513676549,0.45982081,114100.0,114090.0,0.53606081]
[1757513676756,0.03556,114100.0,114090.0,0.53606081]
[1757513676957,0.01334,114100.0,114090.0,0.53606081]
[1757513677154,0.01334,114100.0,114090.0,0.71032162]
[1757513677554,0.01334,114100.0,114090.0,0.53606081]
[1757513678265,0.03556,114100.0,114090.0,0.53606081]
[1757513679658,0.20982081,114100.0,114090.0,1.23592]
[1757513680266,0.03556,114100.0,114090.0,1.23592]
[1757513680564,0.20982081,114100.0,114090.0,1.23592]
[1757513682867,0.63408162,114100.0,114090.0,0.3618]
[1757513683165,0.63408162,114100.0,114090.0,1.23528]
[1757513684154,0.63408162,114100.0,114090.0,0.3618]
[1757513686467,0.63408162,114100.0,114090.0,0.001]
[1757513687570,0.28556,114100.0,114090.0,0.001]
[1757513687766,0.63408162,114100.0,114090.0,0.001]
[1757513688271,0.63408162,114100.0,114090.0,0.3618]
[1757513688665,0.45982081,114100.0,114090.0,0.3618]
[1757513688862,0.20982081,114100.0,114090.0,0.53606081]
[1757513689267,0.20982081,114100.0,114090.0,0.3618]
[1757513690671,0.20982081,114100.0,114090.0,0.001]
[1757513690874,0.38408162,114100.0,114090.0,0.001]
[1757513691067,0.63408162,114100.0,114090.0,0.00976]
[1757513692673,0.63408162,114100.0,114090.0,0.37056]
[1757513693985,0.63408162,114100.0,114090.0,0.00976]
[1757513694176,0.38408162,114100.0,114090.0,0.37056]
[1757513694378,0.38408162,114100.0,114090.0,0.00976]
[1757513694578,0.03556,114100.0,114090.0,0.00976]
[1757513694881,0.20982081,114100.0,114090.0,0.54482081]
[1757513695278,0.38408162,114100.0,114090.0,0.37056]
[1757513696077,0.38408162,114100.0,114090.0,0.00976]
[1757513697381,0.03556,114100.0,114090.0,0.00976]
[1757513697580,0.38408162,114100.0,114090.0,0.00976]
[1757513697886,0.38408162,114100.0,114090.0,0.37056]
[1757513698075,0.38408162,114100.0,114090.0,0.00976]
[1757513700284,0.03556,114100.0,114090.0,0.00976]
[1757513700489,0.20982081,114100.0,114090.0,0.37056]
[1757513700881,0.03556,114100.0,114090.0,0.37056]
[1757513701081,0.20982081,114100.0,114090.0,0.54482081]
[1757513701290,0.03556,114100.0,114090.0,0.37056]
[1757513701490,0.20982081,114100.0,114090.0,0.54482081]
[1757513701785,0.03556,114100.0,114090.0,0.54482081]
[1757513701982,0.20982081,114100.0,114090.0,0.37056]
[1757513702183,0.20982081,114100.0,114090.0,0.54482081]
[1757513702492,0.20982081,114100.0,114090.0,0.37056]
[1757513702792,0.03556,114100.0,114090.0,0.37056]
[1757513703093,0.38408162,114100.0,114090.0,0.00976]
[1757513703894,0.38408162,114100.0,114090.0,0.37056]
[1757513704091,0.03556,114100.0,114090.0,0.54482081]
[1757513704295,0.03556,114100.0,114090.0,0.79482081]
[1757513704594,0.03556,114100.0,114090.0,0.69855147]
[1757513704780,0.20982081,114100.0,114090.0,1.41510081]
[1757513704981,0.03556,114100.0,114090.0,1.24084]
[1757513705186,0.20982081,114100.0,114090.0,1.41510081]
[1757513705388,0.03556,114100.0,114090.0,0.54482081]
[1757513705586,0.03556,114100.0,114090.0,1.41494081]
[1757513705989,0.03556,114100.0,114090.0,1.66494081]
[1757513706297,0.03556,114100.0,114090.0,1.74293228]
[1757513706596,0.03556,114100.0,114090.0,1.66494081]
[1757513706988,0.01334,114100.0,114090.0,1.66494081]
[1757513707289,0.03451,114100.0,114090.0,0.62056]
[1757513707492,0.01334,114100.0,114090.0,1.66466081]
[1757513708096,0.01334,114100.0,114090.0,0.87281228]
[1757513708285,0.01334,114100.0,114090.0,1.56823147]
[1757513708485,0.01334,114100.0,114090.0,1.74249228]
[1757513708994,0.01334,114100.0,114090.0,1.98852065]
[1757513709197,0.01334,114100.0,114090.0,1.56200756]
[1757513709391,0.01334,114100.0,114090.0,2.0201146]
[1757513709696,0.01334,114100.0,114090.0,1.84585379]
[1757513709895,0.01334,114100.0,114090.0,2.0199146]
[1757513710591,0.01334,114100.0,114090.0,1.84557379]
[1757513711094,0.01334,114100.0,114090.0,0.88009498]
[1757513711391,0.01334,114100.0,114090.0,1.81409037]
[1757513711597,0.01334,114100.0,114090.0,1.98835118]
[1757513712194,0.01334,114100.0,114090.0,1.11903118]
[1757513712491,0.01334,114100.0,114090.0,1.98811118]
[1757513712997,0.01334,114100.0,114090.0,1.63958956]
[1757513713199,0.01334,114100.0,114090.0,1.98811118]
[1757513715497,0.01334,114110.0,114090.0,2.08418999]
[1757513715801,0.01334,114110.0,114100.0,0.78736776]
[1757513716490,0.01334,114110.0,114100.0,0.95932162]
[1757513716690,0.01334,114110.0,114100.0,1.03736776]
[1757513717095,0.01434,114110.0,114100.0,1.03736776]
[1757513717498,0.01434,114110.0,114100.0,1.04612776]
[1757513718208,0.01434,114110.0,114100.0,0.96808162]
[1757513718601,0.01434,114110.0,114100.0,1.04612776]
[1757513718801,0.01434,114110.0,114100.0,1.05482657]